bitfinex/quotes_SOLUSD_20250406
["timestamp","ask_amount","ask_price","bid_price","bid_amount"]
[1743975362905,54.98648166,107.22,107.21,0.0001]
[1743975363293,118.86952747,107.22,107.21,0.0001]
[1743975363720,81.04929297,107.22,107.21,0.0001]
[1743975363892,73.63613052,107.22,107.21,0.0001]
[1743975364301,118.86952747,107.22,107.21,0.0001]
[1743975365522,118.86952747,107.22,107.17,0.03]
[1743975365523,0.14216157,107.18,107.17,0.03]
[1743975365693,45.65988166,107.18,107.17,0.03]
[1743975365893,45.65988166,107.18,107.17,0.0001]
[1743975366296,64.30953052,107.18,107.17,0.0001]
[1743975367519,73.63953052,107.18,107.17,0.0001]
[1743975368303,78.23260904,107.18,107.17,0.0001]
[1743975371225,9.3294,107.19,107.17,0.0001]
[1743975371405,54.56279695,107.19,107.17,0.0001]
[1743975371599,10.92,107.23,107.17,0.0001]
[1743975371905,45.23339695,107.24,107.17,1.565]
[1743975372104,45.23339695,107.24,107.18,45.23339695]
[1743975372105,0.28432314,107.24,107.18,45.23339695]
[1743975372436,45.23339695,107.24,107.18,45.23339695]
[1743975372757,9.3257,107.23,107.18,54.56289695]
[1743975373120,54.55909695,107.23,107.18,54.56289695]
[1743975374129,54.55909695,107.23,107.19,3.43763205]
[1743975374334,9.3257,107.23,107.19,3.43763205]
[1743975374830,9.3257,107.23,107.2,3.43763205]
[1743975375619,54.55909695,107.23,107.2,3.43763205]
[1743975376229,54.55829695,107.24,107.2,3.43763205]
[1743975376430,54.55829695,107.24,107.19,12.76643205]
[1743975376635,9.60862314,107.25,107.19,57.999829]
[1743975376842,45.23339695,107.25,107.2,18.79181043]
[1743975377146,45.23339695,107.26,107.21,45.23339695]
[1743975377435,45.29639695,107.27,107.23,6.6403]
[1743975377929,0.063,107.27,107.23,6.6403]
[1743975378136,0.063,107.27,107.24,76.55410738]
[1743975378323,0.063,107.27,107.24,79.99173943]
[1743975378713,0.063,107.27,107.24,15.96653205]
[1743975378912,0.063,107.27,107.25,3.43763205]
[1743975379439,0.063,107.27,107.25,48.671029]
[1743975379815,0.063,107.27,107.25,45.23339695]
[1743975380019,0.063,107.27,107.24,67.08699695]
[1743975380417,0.063,107.27,107.25,48.66948071]
[1743975380718,0.063,107.27,107.26,9.3231]
[1743975381236,0.063,107.27,107.26,73.63263052]
[1743975381528,0.063,107.33,107.29,45.23339695]
[1743975381742,0.063,107.32,107.29,10.9]
[1743975382510,0.063,107.32,107.27,64.02520738]
[1743975382711,0.063,107.32,107.28,9.3214]
[1743975383740,45.29639695,107.32,107.26,1.5166]
[1743975383924,45.23339695,107.31,107.26,46.74999695]
[1743975384124,45.29639695,107.32,107.26,46.74999695]
[1743975384327,45.29639695,107.32,107.27,3.41921799]
[1743975384939,45.29639695,107.32,107.27,57.97481494]
[1743975385239,0.063,107.32,107.27,76.6244638]
[1743975385437,0.063,107.32,107.27,73.20524581]
[1743975385738,0.063,107.32,107.27,27.97184886]
[1743975385939,0.063,107.32,107.27,73.20524581]
[1743975386635,45.29639695,107.32,107.27,73.20524581]
[1743975386846,54.61479695,107.32,107.27,27.97184886]
[1743975387014,54.61479695,107.32,107.26,1.5166]
[1743975387015,45.23339695,107.3,107.26,1.5166]
[1743975387348,45.23339695,107.29,107.23,17.62436157]
[1743975387517,45.23339695,107.28,107.24,3.41789465]
[1743975388327,45.23339695,107.28,107.23,8.1569]
[1743975388531,0.42648471,107.31,107.23,8.1569]
[1743975388532,45.23339695,107.27,107.23,8.1569]
[1743975388731,45.23339695,107.26,107.21,11.04216157]
[1743975388938,54.55739695,107.25,107.2,7.7626]
[1743975389134,45.23339695,107.24,107.2,6.246]
[1743975389352,45.23339695,107.23,107.18,10.9]
[1743975389510,45.23339695,107.21,107.17,7.7627]
[1743975389713,45.23339695,107.22,107.17,7.7627]
[1743975389910,9.324,107.25,107.19,45.23339695]
[1743975390117,45.23339695,107.24,107.19,45.23339695]
[1743975390312,45.23339695,107.23,107.18,64.02520738]
[1743975390541,45.23339695,107.23,107.18,18.79181043]
[1743975390738,45.23339695,107.23,107.17,62.32699695]
[1743975391119,54.55939695,107.23,107.17,62.32699695]
[1743975391322,54.55939695,107.23,107.18,3.42862837]
[1743975391734,45.23339695,107.22,107.18,3.42862837]
[1743975391958,45.23339695,107.22,107.17,62.32699695]
[1743975392157,45.23339695,107.21,107.17,7.7627]
[1743975392657,54.56049695,107.22,107.17,17.0935]
[1743975393336,9.3231,107.26,107.19,45.23339695]
[1743975393656,45.23339695,107.26,107.21,45.23339695]
[1743975394154,54.55659695,107.26,107.21,9.3274]
[1743975394657,54.55659695,107.26,107.21,54.56079695]
[1743975395169,9.60572314,107.28,107.21,54.56079695]
[1743975395454,45.23339695,107.29,107.23,70.64640738]
[1743975395657,9.3187,107.31,107.25,45.23339695]
[1743975395821,45.23339695,107.3,107.24,46.78369695]
[1743975396226,45.23339695,107.3,107.25,9.324]
[1743975396523,45.23339695,107.29,107.25,9.324]
[1743975396957,45.23339695,107.28,107.23,6.6212]
[1743975397259,45.23339695,107.26,107.21,11.01946157]
[1743975397434,45.23339695,107.26,107.21,56.25285852]
[1743975397634,45.23339695,107.26,107.22,3.42620918]
[1743975398147,45.23339695,107.26,107.21,11.01946157]
[1743975398326,54.55699695,107.26,107.21,11.01946157]
[1743975398530,9.60572314,107.28,107.22,45.23339695]
[1743975398763,54.55479695,107.28,107.22,45.23339695]
[1743975399059,54.55409695,107.29,107.23,64.02520738]
[1743975400464,9.3207,107.29,107.24,9.3248]
[1743975400757,54.55339695,107.3,107.24,57.98066666]
[1743975401256,0.14216157,107.31,107.25,64.02520738]
[1743975401257,54.55249695,107.31,107.25,64.02520738]
[1743975401441,54.55219695,107.31,107.26,51.81959695]
[1743975401642,9.3812,107.32,107.26,51.81959695]
[1743975401851,54.61459695,107.32,107.26,51.81959695]
[1743975402368,45.23339695,107.31,107.26,51.81959695]
[1743975402554,54.55219695,107.31,107.27,9.3222]
[1743975402855,45.23339695,107.3,107.26,15.9092]
[1743975403059,45.23339695,107.28,107.23,6.3648]
[1743975403366,45.23339695,107.28,107.23,15.6899]
[1743975403535,32.90002314,107.31,107.23,34.33954886]
[1743975403536,45.23339695,107.27,107.23,34.33954886]
[1743975403740,45.23339695,107.27,107.23,15.6899]
[1743975403951,45.23339695,107.27,107.23,6.3648]
[1743975404150,10.88,107.3,107.23,6.3648]
[1743975404151,45.23339695,107.26,107.23,6.3648]
[1743975404358,45.23339695,107.26,107.22,20.2061]
[1743975404557,45.23339695,107.26,107.22,9.3261]
[1743975405762,54.55659695,107.26,107.22,9.3261]
[1743975407052,54.55659695,107.26,107.21,10.8773]
[1743975407365,9.3232,107.26,107.2,34.02404886]
[1743975407569,45.23339695,107.24,107.2,15.3744]
[1743975407785,45.23339695,107.23,107.19,1.6602]
[1743975407938,45.23339695,107.21,107.17,15.608]
[1743975408138,45.23339695,107.21,107.17,6.2774]
[1743975408746,54.56159695,107.21,107.17,6.2774]
[1743975409162,9.3282,107.21,107.17,6.2774]
[1743975409355,45.23339695,107.2,107.17,6.2774]
[1743975409561,54.56159695,107.21,107.17,6.2774]
[1743975410303,54.56159695,107.21,107.17,15.608]
[1743975410446,56.11339695,107.28,107.18,64.02520738]
[1743975410772,54.55739695,107.25,107.2,9.3283]
[1743975410946,45.23339695,107.25,107.2,77.88249695]
[1743975411349,45.23339695,107.26,107.2,77.88249695]
[1743975412069,45.23339695,107.26,107.21,3.42503997]
[1743975412772,9.3226,107.27,107.22,9.3266]
[1743975412953,45.23339695,107.26,107.22,9.3266]
[1743975413640,45.23339695,107.25,107.21,9.3274]
[1743975413877,19.07613357,107.27,107.2,9.3279]
[1743975414079,45.23339695,107.24,107.2,9.3279]
[1743975414477,19.07613357,107.27,107.18,64.02520738]
[1743975414478,45.23339695,107.23,107.21,3.43330114]
[1743975415165,45.23339695,107.23,107.2,9.3283]
[1743975416784,45.23339695,107.23,107.19,9.3292]
[1743975417086,45.23339695,107.23,107.2,12.77090534]
[1743975417287,54.55879695,107.24,107.2,12.77090534]
[1743975418284,54.55879695,107.24,107.21,3.44290534]
[1743975418967,54.55879695,107.24,107.19,9.3292]
[1743975419282,9.3254,107.24,107.19,9.3292]
[1743975419480,19.07613357,107.27,107.19,32.6522]
[1743975419681,45.23339695,107.25,107.19,77.88559695]
[1743975419887,9.3231,107.26,107.19,77.88559695]
[1743975420185,45.23339695,107.25,107.2,3.44246381]
[1743975420578,45.23339695,107.24,107.2,3.44246381]
[1743975420892,45.23339695,107.24,107.21,3.44246381]
[1743975421705,45.23339695,107.22,107.17,15.6079]
[1743975422001,45.23339695,107.19,107.17,0.0001]
[1743975422769,45.23339695,107.18,107.17,0.0001]
[1743975423201,45.51772009,107.18,107.17,0.0001]
[1743975423407,64.30953052,107.18,107.17,0.0001]
[1743975423904,78.34859318,107.18,107.17,0.0001]
[1743975424887,19.07613357,107.17,107.16,0.03]
[1743975425097,109.54292747,107.17,107.14,0.03]
[1743975425304,64.30953052,107.15,107.14,0.03]
[1743975425792,9.61872314,107.13,107.11,0.03]
[1743975426104,84.50393052,107.13,107.11,0.03]
[1743975428401,45.23339695,107.13,107.11,0.03]
[1743975428606,54.56779695,107.13,107.11,0.03]
[1743975429412,54.70995852,107.13,107.11,0.03]
[1743975429573,54.85212009,107.13,107.11,0.03]
[1743975430497,45.23339695,107.13,107.11,0.03]
[1743975430699,81.2,107.17,107.11,0.03]
[1743975430879,366.65286266,107.18,107.11,0.03]
[1743975431081,17.21286266,107.18,107.11,0.03]
[1743975431298,45.23339695,107.16,107.11,0.03]
[1743975431601,6.3956,107.2,107.12,64.05520738]
[1743975431775,45.23339695,107.17,107.12,64.05520738]
[1743975431975,54.56029695,107.22,107.15,9.3327]
[1743975432273,9.58217543,107.24,107.16,64.02520738]
[1743975432474,9.58217543,107.24,107.17,45.23339695]
[1743975432475,45.23339695,107.22,107.17,45.23339695]
[1743975432674,45.23339695,107.2,107.16,3.41927538]
[1743975433382,9.58217543,107.24,107.16,3.41927538]
[1743975433587,45.23339695,107.21,107.16,3.41927538]
[1743975433803,45.23339695,107.21,107.15,54.56609695]
[1743975434099,45.23339695,107.21,107.15,77.89779695]
[1743975435196,45.23339695,107.21,107.17,9.3309]
[1743975437097,45.23339695,107.19,107.13,42.41143357]
[1743975437402,45.23339695,107.17,107.13,9.3344]
[1743975437784,45.23339695,107.16,107.13,9.3344]
[1743975438090,45.23339695,107.16,107.12,28.01454886]
[1743975439904,45.23339695,107.15,107.12,0.03]
[1743975440212,45.23339695,107.14,107.12,0.03]
[1743975440402,45.23339695,107.13,107.12,0.03]
[1743975440912,64.30953052,107.13,107.12,0.03]
[1743975441202,81.62648471,107.12,107.1,0.03]
[1743975441406,81.62648471,107.12,107.04,0.03]
[1743975441407,0.14216157,107.05,107.04,0.03]
[1743975441588,101.16953052,107.05,107.01,28.89609498]
[1743975441793,45.51772009,107.03,107.01,28.89609498]
[1743975442104,10.86,107.05,107.01,28.89609498]
[1743975442407,45.23339695,107.04,107.01,28.89609498]
[1743975442700,18.933972,107.07,107.01,38.24079498]
[1743975442904,18.933972,107.07,107.02,23.77704749]
[1743975443079,45.23339695,107.05,107.02,23.77704749]
[1743975443276,45.23339695,107.06,107.02,23.77704749]
[1743975443508,369.7389,107.08,107.02,47.13714749]
[1743975443509,45.23339695,107.07,107.02,47.13714749]
[1743975443696,45.23339695,107.08,107.02,92.37054444]
[1743975444502,9.3382,107.09,107.07,0.03]
[1743975444503,45.23339695,107.09,107.07,0.03]
[1743975445607,45.23339695,107.08,107.07,0.03]
[1743975447108,54.99868166,107.08,107.07,0.03]
[1743975447408,73.64833052,107.08,107.07,0.03]
[1743975450132,54.85652009,107.08,107.07,0.03]
[1743975450420,15.54756705,107.11,107.07,0.03]
[1743975450421,45.23339695,107.09,107.07,0.03]
[1743975450785,45.23339695,107.1,107.07,0.03]
[1743975451289,45.23339695,107.09,107.07,0.03]
[1743975451499,45.23339695,107.1,107.07,0.03]
[1743975452106,45.23339695,107.12,107.07,0.03]
[1743975453722,45.23339695,107.12,107.07,9.3696]
[1743975454226,349.66,107.14,107.08,64.02520738]
[1743975454432,9.3321,107.16,107.1,18.79181043]
[1743975454598,54.56549695,107.16,107.1,64.02520738]
[1743975454920,45.23339695,107.17,107.12,18.79181043]
[1743975455787,45.23339695,107.17,107.13,9.3344]
[1743975456296,9.3283,107.2,107.14,18.79181043]
[1743975456513,45.23339695,107.19,107.14,18.79181043]
[1743975457020,45.23339695,107.2,107.14,18.79181043]
[1743975457209,45.23339695,107.17,107.13,20.1944]
[1743975457512,67.97992442,107.17,107.13,9.3344]
[1743975457811,67.97992442,107.17,107.12,28.12711043]
[1743975458118,67.97992442,107.17,107.11,116.23873485]
[1743975458119,67.97992442,107.15,107.11,15.4627]
[1743975458319,67.97992442,107.13,107.08,18.79181043]
[1743975459224,67.97992442,107.14,107.08,119.45753485]
[1743975460019,77.31362442,107.14,107.08,119.45753485]
[1743975461622,77.31362442,107.14,107.08,96.11053485]
[1743975461806,67.97992442,107.14,107.08,96.11053485]
[1743975462224,67.97992442,107.15,107.1,18.79181043]
[1743975462427,67.97992442,107.16,107.1,86.77173485]
[1743975463017,67.97992442,107.16,107.09,19.07613357]
[1743975463210,67.97992442,107.16,107.11,18.79181043]
[1743975463429,67.97992442,107.17,107.11,86.77173485]
[1743975463926,67.97992442,107.16,107.12,9.3353]
[1743975464227,67.97992442,107.15,107.11,54.12781043]
[1743975464428,67.97992442,107.15,107.11,28.12781043]
[1743975464919,67.97992442,107.17,107.11,119.44813485]
[1743975466511,67.97992442,107.17,107.11,51.46821043]
[1743975467126,67.97992442,107.16,107.11,51.46821043]
[1743975468712,67.97992442,107.16,107.11,28.12781043]
[1743975470522,67.97992442,107.16,107.11,51.46821043]
[1743975471446,67.97992442,107.14,107.11,9.336]
[1743975471753,9.61432314,107.18,107.1,18.64964886]
[1743975471754,67.97992442,107.13,107.1,9.337]
[1743975472535,67.97992442,107.15,107.1,27.98664886]
[1743975472871,67.97992442,107.15,107.1,51.32924886]
[1743975473052,67.97992442,107.15,107.11,18.79181043]
[1743975473726,67.97992442,107.13,107.1,9.337]
[1743975474436,9.3309,107.17,107.1,32.6796]
[1743975474633,67.97992442,107.16,107.11,18.79181043]
[1743975475156,10.9547,107.19,107.11,18.79181043]
[1743975475355,67.97992442,107.16,107.11,18.79181043]
[1743975476750,67.97992442,107.16,107.12,9.3353]
[1743975478162,67.97992442,107.16,107.12,32.6736]
[1743975478855,67.97992442,107.16,107.12,9.3353]
[1743975479051,67.97992442,107.15,107.12,9.3353]
[1743975479254,45.34783355,107.14,107.11,9.3359]
[1743975479625,45.34783355,107.13,107.1,9.337]
[1743975481648,9.3327,107.15,107.09,27.98714886]
[1743975481842,45.34783355,107.16,107.11,18.64964886]
[1743975482169,45.34783355,107.16,107.13,9.3344]
[1743975482881,45.34783355,107.17,107.13,32.6705]
[1743975483163,0.063,107.22,107.14,64.13964398]
[1743975483370,45.34783355,107.21,107.16,18.79181043]
[1743975483564,45.34783355,107.2,107.16,18.79181043]
[1743975484259,45.41083355,107.22,107.17,32.6583]
[1743975484459,45.41083355,107.22,107.17,43.4783]
[1743975484649,45.41083355,107.22,107.18,18.79181043]
[1743975484858,0.063,107.22,107.18,64.13964398]
[1743975485168,0.063,107.22,107.2,18.79181043]
[1743975485340,0.063,107.22,107.2,64.13964398]
[1743975485543,0.063,107.22,107.21,18.79181043]
[1743975486151,0.063,107.22,107.21,28.11921043]
[1743975487263,0.063,107.22,107.21,73.75136712]
[1743975487457,0.063,107.22,107.21,28.40353357]
[1743975488258,0.063,107.22,107.21,28.11921043]
[1743975488573,0.063,107.22,107.21,9.3274]
[1743975490450,0.063,107.22,107.19,32.6508]
[1743975490847,0.063,107.22,107.2,64.13964398]
[1743975491073,0.063,107.22,107.21,0.28432314]
[1743975491476,0.063,107.22,107.21,45.63215669]
[1743975491961,0.0001,107.22,107.21,45.63215669]
[1743975492479,0.25697543,107.24,107.23,0.14216157]
[1743975492685,0.25697543,107.24,107.23,64.13964398]
[1743975492863,0.25697543,107.24,107.23,18.79181043]
[1743975493065,0.25697543,107.24,107.23,64.13964398]
[1743975493387,0.25697543,107.24,107.23,75.24396712]
[1743975493687,7.543e-05,107.24,107.23,75.24396712]
[1743975494386,7.543e-05,107.24,107.23,84.56966712]
[1743975495285,2.728e-05,107.25,107.24,19.07613357]
[1743975495470,2.728e-05,107.25,107.24,64.42396712]
[1743975496584,2.728e-05,107.25,107.24,73.74876712]
[1743975496972,2.728e-05,107.25,107.24,28.40093357]
[1743975497171,2.728e-05,107.25,107.24,73.74876712]
[1743975497470,0.2060637,107.26,107.25,0.28432314]
[1743975497858,6.37e-05,107.26,107.25,45.63215669]
[1743975498789,6.37e-05,107.26,107.25,73.74796712]
[1743975498988,6.37e-05,107.26,107.24,9.3248]
[1743975499161,6.37e-05,107.26,107.22,28.11841043]
[1743975499357,45.34789725,107.26,107.22,28.11841043]
[1743975500066,6.37e-05,107.26,107.22,28.11841043]
[1743975500589,6.37e-05,107.26,107.22,96.78274398]
[1743975500960,6.37e-05,107.26,107.24,64.13964398]
[1743975501162,6.37e-05,107.26,107.25,45.63215669]
[1743975501363,6.37e-05,107.26,107.25,56.43215669]
[1743975502485,6.37e-05,107.26,107.25,10.8]
[1743975502689,6.37e-05,107.26,107.25,38.91581043]
[1743975502985,6.37e-05,107.26,107.25,9.324]
[1743975503387,6.37e-05,107.26,107.23,9.3253]
[1743975506287,45.34789725,107.26,107.23,9.3253]
[1743975506491,6.37e-05,107.26,107.23,9.3253]
[1743975507392,6.37e-05,107.26,107.24,18.79181043]
[1743975508183,6.37e-05,107.26,107.24,64.13964398]
[1743975508602,6.37e-05,107.26,107.25,45.63215669]
[1743975508796,6.37e-05,107.26,107.25,54.95615669]
[1743975509095,6.37e-05,107.26,107.24,20.1244]
[1743975510192,6.37e-05,107.26,107.24,9.3244]
[1743975510500,6.37e-05,107.26,107.23,9.3253]
[1743975511574,6.37e-05,107.26,107.23,32.6396]
[1743975512499,6.37e-05,107.26,107.24,18.79181043]
[1743975514387,6.37e-05,107.26,107.25,28.11581043]
[1743975515874,6.37e-05,107.26,107.25,28.40013357]
[1743975516074,6.37e-05,107.26,107.25,73.74796712]
[1743975517179,6.37e-05,107.26,107.25,81.49976712]
[1743975517379,6.6e-05,107.27,107.26,18.79181043]
[1743975517583,6.6e-05,107.27,107.26,19.07613357]
[1743975517782,6.6e-05,107.27,107.26,0.42648471]
[1743975517982,6.6e-05,107.27,107.26,18.79181043]
[1743975519908,6.6e-05,107.27,107.26,28.11491043]
[1743975520411,6.6e-05,107.27,107.26,73.74706712]
[1743975521606,1.667e-05,107.28,107.27,0.28432314]
[1743975521912,1.667e-05,107.28,107.27,73.74616712]
[1743975522506,1.667e-05,107.28,107.27,28.39833357]
[1743975522695,1.667e-05,107.28,107.27,73.74616712]
[1743975524305,1.667e-05,107.28,107.27,28.39833357]
[1743975524484,1.667e-05,107.28,107.27,28.11401043]
[1743975527306,1.667e-05,107.28,107.27,9.3222]
[1743975530617,1.667e-05,107.28,107.27,9.46436157]
[1743975530993,1.667e-05,107.28,107.27,73.46184398]
[1743975531294,1.667e-05,107.28,107.27,56.64089607]
[1743975531612,1.667e-05,107.28,107.27,9.3222]
[1743975537721,1.667e-05,107.28,107.27,9.46436157]
[1743975538499,1.667e-05,107.28,107.27,56.64089607]
[1743975539622,1.667e-05,107.28,107.27,28.39833357]
[1743975539913,1.667e-05,107.28,107.27,56.64089607]
[1743975540615,1.667e-05,107.28,107.27,28.11401043]
[1743975542641,1.667e-05,107.28,107.27,9.3222]
[1743975543403,28.24257917,107.28,107.23,9.3253]
[1743975543626,28.2425625,107.26,107.22,23.72468361]
[1743975543928,28.2425625,107.25,107.22,23.72468361]
[1743975544124,7.8635,107.24,107.22,14.39838361]
[1743975544437,36.1060625,107.24,107.22,14.39838361]
[1743975544826,7.8635,107.24,107.22,23.72468361]
[1743975545629,36.1060625,107.24,107.22,14.39838361]
[1743975545824,7.8635,107.24,107.22,9.3564]
[1743975546128,36.0723625,107.27,107.22,9.3564]
[1743975546329,36.0723625,107.27,107.22,32.6729]
[1743975546923,36.0723625,107.27,107.23,18.79181043]
[1743975546924,7.8298,107.27,107.23,18.79181043]
[1743975547238,7.8298,107.27,107.23,47.03437293]
[1743975547406,1.667e-05,107.28,107.25,18.79181043]
[1743975548432,1.667e-05,107.28,107.25,28.38472407]
[1743975548730,1.667e-05,107.28,107.26,18.64964886]
[1743975548928,1.667e-05,107.28,107.27,9.3222]
[1743975549532,1.667e-05,107.28,107.27,28.11401043]
[1743975550433,1.667e-05,107.28,107.27,9.3222]
[1743975550807,45.20216724,107.28,107.25,9.324]
[1743975551009,45.20215057,107.26,107.23,9.3257]
[1743975551208,45.20215057,107.25,107.22,9.3561]
[1743975551415,45.20215057,107.24,107.22,0.03]
[1743975552348,8.0865,107.27,107.22,0.03]
[1743975552547,45.20215057,107.24,107.22,0.03]
[1743975552710,8.0865,107.27,107.22,9.3565]
[1743975552911,45.20215057,107.25,107.22,9.3565]
[1743975553121,45.20215057,107.25,107.22,0.03]
[1743975555246,0.14216157,107.26,107.22,0.03]
[1743975555415,0.14216157,107.22,107.18,0.03]
[1743975555716,45.20215057,107.19,107.18,0.03]
[1743975555926,19.07613357,107.22,107.18,0.03]
[1743975556106,45.20215057,107.2,107.18,0.03]
[1743975558624,45.20215057,107.19,107.18,0.03]
[1743975559614,9.75328471,107.22,107.18,0.03]
[1743975559835,45.20215057,107.2,107.18,0.03]
[1743975560328,45.20215057,107.19,107.18,0.03]
[1743975560931,9.3278,107.21,107.18,0.03]
[1743975561130,45.20215057,107.2,107.18,0.03]
[1743975561337,45.20215057,107.19,107.18,0.03]
[1743975565546,54.53135057,107.19,107.18,0.03]
[1743975565725,45.20215057,107.19,107.18,0.03]
[1743975566859,54.53135057,107.19,107.18,0.03]
[1743975567355,73.60748414,107.19,107.18,0.03]
[1743975567661,81.37258414,107.19,107.18,0.03]
[1743975567966,19.07613357,107.17,107.16,0.03]
[1743975568134,190.65043471,107.17,107.16,0.03]
[1743975568332,190.65043471,107.17,107.13,0.03]
[1743975568525,100.24613357,107.17,107.13,0.03]
[1743975568725,45.20215057,107.14,107.13,0.03]
[1743975569148,54.53565057,107.14,107.13,0.03]
[1743975569348,37.68192937,107.14,107.13,0.03]
[1743975572652,56.75806294,107.14,107.13,0.03]
[1743975573822,75.43206294,107.14,107.12,0.03]
[1743975574130,28.34842937,107.13,107.12,0.03]
[1743975574534,19.07613357,107.12,107.07,0.03]
[1743975574748,28.34842937,107.09,107.07,0.03]
[1743975574940,28.34842937,107.09,107.08,0.03]
[1743975575347,64.38166294,107.09,107.08,0.03]
[1743975576657,35.96762937,107.09,107.08,0.03]
[1743975577945,45.30552937,107.09,107.08,0.03]
[1743975578147,64.38166294,107.09,107.08,0.03]
[1743975579770,7.6192,107.09,107.08,0.03]
[1743975579942,18.79181043,107.11,107.08,0.03]
[1743975580137,7.6192,107.12,107.08,0.03]
[1743975580341,28.34842937,107.12,107.08,0.03]
[1743975580563,28.34842937,107.13,107.08,0.03]
[1743975580747,89.20976157,107.15,107.08,0.03]
[1743975580955,28.34842937,107.13,107.08,0.03]
[1743975581156,28.34842937,107.12,107.09,26.0]
[1743975581373,28.34842937,107.11,107.09,26.0]
[1743975581548,28.34842937,107.12,107.09,35.3372]
[1743975581744,28.34842937,107.11,107.09,35.3372]
[1743975582173,17.37276157,107.15,107.09,35.3372]
[1743975582482,7.8976,107.15,107.09,35.3372]
[1743975582641,28.34842937,107.14,107.09,35.3372]
[1743975583002,28.34842937,107.14,107.09,58.682]
[1743975583662,28.34842937,107.14,107.1,18.79181043]
[1743975583858,9.3311,107.17,107.11,9.3361]
[1743975584062,28.34842937,107.15,107.11,9.3361]
[1743975584372,360.56216157,107.19,107.11,67.56322937]
[1743975584547,28.34842937,107.17,107.11,67.56322937]
[1743975584751,28.34842937,107.17,107.12,18.79181043]
[1743975585966,28.34842937,107.18,107.13,9.3344]
[1743975586173,28.34842937,107.15,107.12,9.335]
[1743975586745,18.933972,107.18,107.11,15.8741]
[1743975586943,28.34842937,107.13,107.1,9.337]
[1743975587392,28.34842937,107.16,107.1,9.337]
[1743975587685,28.34842937,107.13,107.1,9.337]
[1743975587887,28.34842937,107.13,107.08,17.3283]
[1743975587888,28.34842937,107.13,107.09,9.3379]
[1743975588185,37.68102937,107.16,107.09,9.3379]
[1743975588345,28.34842937,107.14,107.09,9.3379]
[1743975588545,28.34842937,107.13,107.09,9.3379]
[1743975589286,45.35412032,107.13,107.09,9.3379]
[1743975592390,45.35412032,107.13,107.09,27.98754886]
[1743975592568,45.35412032,107.13,107.09,9.3379]
[1743975593950,45.35412032,107.14,107.09,51.33234886]
[1743975597075,45.35412032,107.13,107.09,27.98754886]
[1743975597266,45.35412032,107.13,107.09,9.3379]
[1743975598076,45.35412032,107.12,107.08,26.667]
[1743975598280,45.35412032,107.12,107.08,15.907]
[1743975598481,45.35412032,107.11,107.08,9.3687]
[1743975598681,9.3362,107.11,107.08,0.03]
[1743975598871,31.5285,107.15,107.08,0.03]
[1743975598872,19.07613357,107.14,107.08,0.03]
[1743975599081,45.35412032,107.11,107.08,0.03]
[1743975600155,51.74353357,107.14,107.08,0.03]
[1743975600357,9.3335,107.14,107.08,0.03]
[1743975600561,45.35412032,107.13,107.08,26.03]
[1743975600765,28.2885,107.15,107.09,9.3379]
[1743975600984,45.35412032,107.12,107.09,9.3379]
[1743975601184,28.2885,107.15,107.09,9.3379]
[1743975601185,18.9554,107.15,107.09,9.3379]
[1743975601397,45.35412032,107.12,107.09,9.3379]
[1743975602292,45.35412032,107.1,107.08,0.03]
[1743975602660,45.35412032,107.09,107.08,0.03]
[1743975603394,54.69202032,107.09,107.08,0.03]
[1743975603598,73.76815389,107.09,107.08,0.03]
[1743975603895,64.43025389,107.09,107.08,0.03]
[1743975604390,73.76815389,107.09,107.08,0.03]
[1743975605664,79.78025389,107.09,107.08,0.03]
[1743975607191,51.36622032,107.09,107.08,0.03]
[1743975607388,45.35412032,107.09,107.08,0.03]
[1743975607763,15.3479,107.12,107.08,0.03]
[1743975608096,45.35412032,107.09,107.08,0.03]
[1743975609331,28.35619677,107.11,107.08,0.03]
[1743975610378,28.35619677,107.09,107.08,0.03]
[1743975613027,37.69409677,107.09,107.08,0.03]
[1743975613204,56.77023034,107.09,107.08,0.03]
[1743975616004,56.77023034,107.09,107.07,0.03]
[1743975616208,56.77023034,107.09,107.05,0.03]
[1743975616209,19.07613357,107.06,107.05,0.03]
[1743975616375,58.17233034,107.06,107.05,0.03]
[1743975617227,0.14216157,107.05,107.03,0.03]
[1743975617407,47.43233034,107.04,107.03,0.03]
[1743975618102,56.77463034,107.04,107.03,0.03]
[1743975619794,85.13082711,107.04,107.03,0.03]
[1743975621327,56.77463034,107.04,107.03,0.03]